Cogmind - Beta 13 @@@ ROGUE MODE // 2024.04.23 @ 18:10:07 Player: Cherman0 Result: Self-destructed Performance ------------- Evolutions (3) 1500 Regions Visited (8) 1600 Robots Destroyed (218) 1090 Value Destroyed (7463) 7463 Prototype IDs (18) 360 Alien Tech Used (0) 0 Bonus (1900) 1900 TOTAL SCORE: 13913 Bonus ------- High Alert Combat Kills 700 Entered Garrisons 200 Used RIF Installer 1000 Cogmind --------- Core Integrity 574/700 Matter 290/300 Energy 150/150 System Corruption 5% Temperature Cool (0) Movement Flying (27) Location -7/Storage Parts ------- > --- POWER (1) -------- Micro Nuclear Core > --- PROPULSION (5) --- Improved VTOL Module Xenon Bombardment Thruster Xenon Bombardment Thruster Xenon Bombardment Thruster Xenon Bombardment Thruster > --- UTILITY (5) ------ Medium Storage Unit Improved Sensor Array Improved Signal Interpreter Improved Propulsion Shielding Hacking Suite > --- WEAPON (2) ------- Mini Assault Cannon Great Maul > --- INVENTORY (10) --- Micro Nuclear Core Cesium-ion Thruster Cesium-ion Thruster Improved Terrain Scanner Improved Terrain Scan Processor Hacking Suite System Shield Mini Grenade Launcher Greatsword Peak State ------------ > --- POWER ------------ Nuclear Core > --- PROPULSION ------- Carbon-fiber Leg Carbon-fiber Leg Gravmag System Gravmag System Gravmag System > --- UTILITY ---------- Huge Storage Unit Improved Sensor Array Improved Signal Interpreter Hardened Medium Armor Plating Hacking Suite > --- WEAPON ----------- Heavy Particle Gun Enhanced Autogun > --- INVENTORY -------- Light Deuterium Engine Micro Nuclear Core Improved Flight Unit Improved Flight Unit Improved VTOL Module Improved Cooling System Medium Storage Unit High-capacity Matter Pod Improved Signal Interpreter Improved Terrain Scanner Terrain Scan Processor Transmission Jammer Improved Light Armor Plating Hardlight Generator Hacking Suite System Shield Relay Coupler [Swarmer] Long-range Tractor Beam Heavy EM Shotgun Heavy Particle Gun Rocket Launcher Mini Grenade Launcher Improved Datajack Great Maul [Rating: 49] Favorites ----------- Power Cooled Ion Engine Engine Cooled Ion Engine Power Core Nuclear Core Propulsion Light Treads Treads Light Treads Leg Carbon-fiber Leg Hover Unit Gravmag System Flight Unit Xenon Bombardment Thruster Utility Huge Storage Unit Device Improved Sensor Array Storage Huge Storage Unit Processor Improved Signal Interpreter Hackware Hacking Suite Protection Hardened Medium Armor Plating Weapon High-powered Shotgun Energy Gun EM Pulse Gun Energy Cannon Light EM Pulse Cannon Ballistic Gun High-powered Shotgun Ballistic Cannon Improved Light Cannon Launcher Mini Grenade Launcher Impact Weapon Great Maul Slashing Weapon Scythe Special Melee Weapon Improved Datajack Build | -11 -10 -9 -9 -8 -8 -8 -7 -7 ------- Run | Yrd Mat Mat Min Mat Gar Mat Fac Sto Slots Evolved 6 | . . 2 . 2 . . 2 . Power . | . . . . . . . . . Propulsion 3 | . . 2 . . . . 1 . Utility 3 | . . . . 2 . . 1 . Weapon . | . . . . . . . . . Parts Attached 279 | 2 14 51 5 78 35 49 45 . Power 20 | . 2 5 . 3 1 4 5 . Engine 12 | . 2 5 . 2 . 1 2 . Core 8 | . . . . 1 1 3 3 . Reactor . | . . . . . . . . . Propulsion 75 | . 3 18 3 23 4 10 14 . Treads 61 | . 3 18 3 23 4 10 . . Leg 2 | . . . . . . . 2 . Wheel . | . . . . . . . . . Hover 6 | . . . . . . . 6 . Flight 6 | . . . . . . . 6 . Utility 77 | 1 2 5 1 29 11 14 14 . Device 43 | 1 . 2 1 22 5 7 5 . Storage 6 | . 2 1 . . 1 . 2 . Processor 2 | . . . . 1 . 1 . . Hackware 4 | . . . . 1 1 1 1 . Protection 22 | . . 2 . 5 4 5 6 . Artifact . | . . . . . . . . . Weapon 107 | 1 7 23 1 23 19 21 12 . Energy Gun 27 | . 4 4 . 4 7 6 2 . Energy Cannon 6 | . . 3 . 3 . . . . Ballistic Gun 35 | 1 . 8 1 9 5 6 5 . Ballistic Cannon 2 | . . 1 . . . . 1 . Launcher 8 | . . 2 . 2 1 3 . . Special Weapon . | . . . . . . . . . Impact Weapon 12 | . 3 4 . . . 1 4 . Slashing Weapon 11 | . . 1 . 5 5 . . . Piercing Weapon . | . . . . . . . . . Special Melee Weapon 6 | . . . . . 1 5 . . Unidentified Prototypes 5 | . . 1 . 2 . . 2 . Corrupted Parts 3 | . . . 1 . . 2 . . System Corruption 10 | . . . 3 . . 7 . . Parts Lost 44 | . 1 5 . 8 13 5 12 . Power 2 | . . . . 1 . . 1 . Propulsion 20 | . . 2 . 2 5 4 7 . Utility 11 | . . 1 . 3 4 1 2 . Weapon 11 | . 1 2 . 2 4 . 2 . Highest Loss Streak 8 | . 1 2 . 3 8 2 3 . To Critical Strikes 1 | . . . . . . 1 . . Average Slot Usage (%) 96 | . 99 98 99 98 95 94 91 . Engine 7 | . 14 11 11 8 5 . . . Core 2 | . . . . . 3 8 6 . Treads 31 | . 27 43 44 35 32 31 8 . Hover 2 | . . . . . . . 14 . Device 8 | . 14 5 10 9 10 6 7 . Storage 10 | . 14 11 11 9 12 9 7 . Processor 2 | . . . . . . 6 7 . Hackware 3 | . . . . 8 2 4 6 . Protection 5 | . . 4 . 8 9 8 5 . Energy Gun 8 | . 22 8 . 1 11 10 1 . Ballistic Gun 8 | . 1 9 22 14 1 4 9 . Impact Weapon 1 | . 4 1 . . . . 3 . Naked Turns . | . . . . . . . . . Heaviest Build 115 | 14 89 100 99 109 115 106 110 . Greatest Support 86 | 20 40 86 86 86 80 80 80 . Greatest Overweight (x) 10 | . 2 1 1 1 2 2 10 . Average Overweight (x) 1 | . 1 1 1 1 1 1 1 . Largest Inventory Capacity 25 | 8 25 25 25 25 25 25 25 . Average Capacity 24 | 8 21 24 25 25 25 25 23 . Most Carried 25 | 7 20 25 25 25 25 25 25 . Average Carried 22 | 5 15 24 24 24 21 24 23 . Final Capacity 25 | 8 20 25 25 25 25 25 10 10 Final Carried 25 | 6 20 25 25 25 25 25 10 10 Class Distribution -------------------- 50% | Mutant 43% | Scavenger-Mutant 4% | Bothacker-Mutant Dominant Class ---------------- Mutant | -10/Materials Mutant | -9/Materials Mutant | -9/Mines Scavenger-Mutant | -8/Materials Scavenger-Mutant | -8/Garrison Scavenger-Mutant | -8/Materials Scavenger-Mutant | -7/Factory Scavenger-Mutant | -7/Storage Resources | -11 -10 -9 -9 -8 -8 -8 -7 -7 ----------- Run | Yrd Mat Mat Min Mat Gar Mat Fac Sto Matter Collected 6278 | 241 396 1100 144 1932 494 1092 879 . Remotely 1362 | . . 54 . 792 356 160 . . Salvage Created 8347 | 199 380 1777 116 1919 1002 1707 1247 . Parts 450 | 9 26 121 14 103 37 78 62 . Haulers Intercepted 15 | . 2 5 . 4 . 2 2 . Recyclers Shooed 7 | . 1 3 . . . 1 2 . Parts Field Recycled . | . . . . . . . . . Retrieved Matter . | . . . . . . . . . Parts Self-Destructed . | . . . . . . . . . Prevented . | . . . . . . . . . Kills | -11 -10 -9 -9 -8 -8 -8 -7 -7 ------- Run | Yrd Mat Mat Min Mat Gar Mat Fac Sto Combat Hostiles Destroyed 150 | . 7 33 6 41 20 27 16 . Melee 8 | . . . . . 4 4 . . Guns 118 | . 7 27 6 37 13 15 13 . Cannons 1 | . . . . 1 . . . . AOE 17 | . . 4 . 3 1 8 1 . Classes Destroyed 16 | 2 5 4 . 4 1 . . . Worker 5 | . . 3 . . . 2 . . Builder 7 | . 4 . . 1 . 1 1 . Tunneler 9 | 5 . 2 2 . . . . . Hauler 15 | . 2 5 . 4 . 2 2 . Recycler 8 | 1 . 2 . . . 3 2 . Mechanic 1 | . . . . 1 . . . . Operator 5 | . . 1 . 1 . 2 1 . Watcher 18 | . 3 5 . 5 . 2 3 . Swarmer 21 | . 6 4 4 5 . 2 . . Grunt 83 | . 1 19 2 18 17 17 9 . Brawler 5 | . . . . 4 . 1 . . Duelist 5 | . . . . 4 . 1 . . Protector 1 | . . 1 . . . . . . Sentry 26 | . . 9 . 9 1 6 1 . Hunter 2 | . . . . 1 . . 1 . Programmer 7 | . . . . . 2 . 5 . Best Kill Streak 7 | 4 4 4 4 7 3 6 3 . Combat Bots Only 6 | . 3 4 4 5 3 6 3 . Max Kills in Single Turn 3 | 1 2 1 2 2 1 3 2 . Gunslinging 1 | . 1 . . 1 . . . . Exploded 3 | . . 1 . 2 1 3 1 . Melee 1 | . . . . . 1 1 . . Uniques/NPCs Destroyed . | . . . . . . . . . Combat | -11 -10 -9 -9 -8 -8 -8 -7 -7 -------- Run | Yrd Mat Mat Min Mat Gar Mat Fac Sto Hostile Shots Fired 847 | . 55 135 17 222 171 114 133 . Missed 203 | . 16 26 2 59 47 22 31 . Damage Taken 9106 | . 376 1669 103 2198 1737 1601 1422 . Core 858 | . 34 230 . 178 132 158 126 . Absorbed by Shields 581 | . . 64 60 220 183 . 54 . Redirected to Shielding 7 | . . . . . . . 7 . Ignored by Resistances 30 | . . . . . 11 19 . . Regen/Repaired (Parts) 391 | . 103 168 . . . 120 . . Core Remaining (%) 60 | 100 86 . 42 . . 14 . . Volleys Fired 577 | 7 47 122 9 133 83 90 86 . Largest 2 | 2 2 2 2 2 2 2 2 . Hottest 110 | 60 80 96 50 90 110 100 100 . Shots Fired 1031 | 14 89 233 18 253 108 154 162 . Gun 994 | 14 89 220 18 236 106 149 162 . Cannon 26 | . . 10 . 16 . . . . Launcher 11 | . . 3 . 1 2 5 . . Special . | . . . . . . . . . Kinetic 601 | 7 15 106 18 224 26 96 109 . Thermal 88 | 7 34 . . . 36 2 9 . Explosive 11 | . . 3 . 1 2 5 . . Electromagnetic 331 | . 40 124 . 28 44 51 44 . Robot Hit Streak 14 | 12 13 13 8 13 10 14 8 . Robot Miss Streak 11 | . 6 7 3 11 5 4 3 . Penetration Max . | . . . . . . . . . Secondary Targets 11 | . 2 . . 7 1 . 1 . Max Gunslinging Chain 1 | . 1 . . 1 1 . 1 . Shots Hit Robots 793 | 12 43 171 14 198 97 134 124 . Core Hits 391 | 7 17 86 11 115 49 64 42 . Critical Kills 5 | . . 2 . . . 2 1 . Critical Parts Destroyed 7 | . 2 1 . 1 . 2 1 . Critical Strikes 20 | . 2 4 . 1 6 5 2 . Destroy 5 | . . 2 . 1 . 1 1 . Corrupt 1 | . . 1 . . . . . . Smash 7 | . 2 1 . . . 3 1 . Sever 7 | . . . . . 6 1 . . Melee Attacks 138 | . 13 14 . 9 42 29 31 . Impact 65 | . 13 12 . . . 9 31 . Slashing 57 | . . 2 . 9 42 4 . . Piercing . | . . . . . . . . . Sneak Attacks 22 | . 1 1 . . . 14 6 . Combat Hostiles 1 | . . . . . . 1 . . Follow-up Attacks . | . . . . . . . . . Damage Inflicted 17093 | 142 649 3408 361 3961 2246 3297 3029 . Guns 12407 | 142 491 2584 280 3310 1451 1945 2204 . Cannons 461 | . . 152 . 309 . . . . Explosions 2056 | . 27 467 . 339 176 893 154 . Melee 2039 | . 124 172 . . 619 453 671 . Ramming 130 | . 7 33 81 3 . 6 . . Kinetic 7951 | 63 77 1482 280 3131 368 1194 1356 . Thermal 1837 | 79 173 332 . 232 518 228 275 . Explosive 948 | . . 135 . 107 41 665 . . Electromagnetic 4188 | . 268 1254 . 488 700 751 727 . Impact 1205 | . 124 107 . . . 303 671 . Slashing 834 | . . 65 . . 619 150 . . Piercing . | . . . . . . . . . Highest Corruption 14 | . 2 3 6 3 6 14 5 . Average Corruption 4 | . 2 3 3 2 4 9 1 . Corruption Purged 2 | . . . . . . . 2 . Corruption Blocked . | . . . . . . . . . Effects 267 | . 20 37 20 28 42 87 33 . Message Errors 59 | . 1 9 3 5 7 24 10 . Matter Fused 62 | . 4 9 4 7 9 21 8 . Heat Flow Errors 32 | . 4 2 3 5 7 8 3 . Energy Discharges 32 | . 4 4 4 2 8 7 3 . Parts Rejected 3 | . . 1 . . . 2 . . Parts Fused 3 | . . 2 . 1 . . . . Data Loss (minor) 35 | . 2 4 4 5 6 10 4 . Data Loss (major) 16 | . 2 . 1 . 3 7 3 . Misfires 12 | . 1 3 . 3 1 4 . . Alerts 8 | . 2 2 1 . 1 2 . . Weapon Failures 5 | . . 1 . . . 2 2 . Overload Shots . | . . . . . . . . . Overflow Damage 600 | . 89 91 5 20 4 56 335 . Projectiles 18 | . . 18 . . . . . . Explosions 78 | . . 54 . 20 4 . . . Melee 504 | . 89 19 5 . . 56 335 . Knockbacks 3 | . . 1 . . . . 2 . Impact 3 | . . 1 . . . . 2 . Kinetic . | . . . . . . . . . Secondary . | . . . . . . . . . Self-Inflicted Damage 519 | . 37 137 . 104 37 149 55 . Shots 13 | . 1 4 . 3 1 3 1 . Rammed 14 | . 1 5 6 1 . 1 . . Targets Rammed 19 | . 2 7 8 1 . 1 . . Kicked . | . . . . . . . . . Crushed 5 | . 1 2 2 . . . . . Highest Temperature 277 | . 172 215 250 277 261 273 258 . Average Temperature 55 | . 38 45 89 45 74 61 51 . Received Heat Transfer 3105 | . 57 605 61 645 824 684 229 . Effects 1 | . . . . . 1 . . . Interference 1 | . . . . . 1 . . . Siege Activations . | . . . . . . . . . Robots Corrupted 7 | . 1 2 . . 2 . 2 . Combat Hostiles 6 | . . 2 . . 2 . 2 . Parts Fried 38 | . 12 5 1 1 1 7 11 . Impact Corruptions 20 | . 4 2 1 . . 2 11 . Robots Melted . | . . . . . . . . . Combat Hostiles . | . . . . . . . . . Parts Melted 4 | . . 2 . . 1 1 . . Heat Transferred 2799 | 175 375 500 . 300 864 300 285 . Parts Sabotaged . | . . . . . . . . . Parts Stolen . | . . . . . . . . . Parts Stripped . | . . . . . . . . . Power Chain Reactions 19 | . 1 6 . 3 2 4 3 . Alert | -11 -10 -9 -9 -8 -8 -8 -7 -7 ------- Run | Yrd Mat Mat Min Mat Gar Mat Fac Sto Peak Influence 1167 | 30 128 703 323 579 1167 623 479 . Initial 568 | . 19 18 273 . 334 568 211 42 Average 308 | 15 45 363 163 333 775 393 146 . Maximum Alert Level 4 | . . 3 1 2 4 2 2 . Low Security (%) 37 | 100 100 21 53 23 . 1 62 . Level 1 32 | . . 39 46 34 11 62 33 . Level 2 22 | . . 38 . 42 23 36 4 . Level 3 5 | . . . . . 50 . . . Level 4 1 | . . . . . 14 . . . Level 5 . | . . . . . . . . . High Security . | . . . . . . . . . Max Security . | . . . . . . . . . Squads Dispatched 30 | . . 4 . 9 . 4 13 . Investigation 8 | . . 2 . . . 2 4 . Extermination 5 | . . . . . . . 5 . Reinforcement 9 | . . 1 . 2 . 2 4 . Assault 2 | . . 1 . 1 . . . . Garrison 6 | . . . . 6 . . . . Intercept . | . . . . . . . . . Searches Triggered . | . . . . . . . . . Construction Impeded 1 | . . . . . . 1 . . Haulers Reinforced 1 | . . . . . . . 1 . Active Scanning Responses . | . . . . . . . . . Cargo Convoy Interrupts . | . . . . . . . . . Stealth | -11 -10 -9 -9 -8 -8 -8 -7 -7 --------- Run | Yrd Mat Mat Min Mat Gar Mat Fac Sto Distress Signals 13 | . 1 3 . 6 . 3 . . Communications Jammed . | . . . . . . . . . Distress Signals . | . . . . . . . . . Times Spotted 253 | . 25 53 6 70 28 42 29 . Peak Tracking Total 7 | . 4 6 4 6 5 7 5 . Tactical Retreats 27 | . 6 9 . 7 3 1 1 . Traps | -11 -10 -9 -9 -8 -8 -8 -7 -7 ------- Run | Yrd Mat Mat Min Mat Gar Mat Fac Sto Traps Triggered 13 | . 1 . . 3 4 1 4 . Indirectly . | . . . . . . . . . Trap Hack Attempts 25 | . . . . . 25 . . . Triggered . | . . . . . . . . . Disarmed . | . . . . . . . . . Reprogrammed 1 | . . . . . 1 . . . Reused . | . . . . . . . . . Traps Extracted . | . . . . . . . . . Installed . | . . . . . . . . . Triggered 3 | . 1 2 . . . . . . Machines | -11 -10 -9 -9 -8 -8 -8 -7 -7 ---------- Run | Yrd Mat Mat Min Mat Gar Mat Fac Sto Machines Disabled 19 | . 1 8 . 3 3 2 2 . Max in Single Turn 2 | . 1 2 . 1 1 1 1 . Garrison Access 2 | . . . . . . . 2 . Garrison Relay 3 | . . . . . 3 . . . Machines Repaired . | . . . . . . . . . Machines Dismantled . | . . . . . . . . . Machines Sabotaged . | . . . . . . . . . Overloaded Fab Kills . | . . . . . . . . . Hacking | -11 -10 -9 -9 -8 -8 -8 -7 -7 --------- Run | Yrd Mat Mat Min Mat Gar Mat Fac Sto Machines Accessed 56 | . 8 11 . 11 2 10 14 . Terminals 33 | . 7 8 . 7 2 5 4 . Fabricators 2 | . . . . . . . 2 . Repair Stations 8 | . 1 2 . . . 2 3 . Recycling Units 6 | . . 1 . 2 . 2 1 . Scanalyzers 4 | . . . . 1 . 1 2 . Garrison Access 3 | . . . . 1 . . 2 . Total Hacks 164 | . 24 31 . 43 2 27 37 . Successful 91 | . 15 19 . 21 2 12 22 . Failed 73 | . 9 12 . 22 . 15 15 . Catastrophic 11 | . 2 . . 3 . 5 1 . Database Lockouts . | . . . . . . . . . Manual 72 | . 9 13 . 22 . 16 12 . Terminals 89 | . 19 17 . 21 2 12 18 . Fabricators 5 | . . . . . . . 5 . Repair Stations 27 | . 5 10 . . . 5 7 . Recycling Units 27 | . . 4 . 14 . 8 1 . Scanalyzers 11 | . . . . 5 . 2 4 . Garrison Access 5 | . . . . 3 . . 2 . Terminal Hacks 30 | . 8 6 . 5 2 . 9 . Record 2 | . . . . . . . 2 . Prototype ID Bank 8 | . 4 3 . 1 . . . . Branch Access Points 1 | . . . . . . . 1 . Emergency Access Points 2 | . . . . . 1 . 1 . Terminal Index 4 | . 1 1 . 1 . . 1 . Alert Level 1 | . . . . 1 . . . . Unreport Threat 1 | . . . . 1 . . . . Locate Traps 6 | . 3 . . 1 . . 2 . Hauler Manifests 3 | . . 2 . . . . 1 . Registered Components 1 | . . . . . . . 1 . Patrol Navigation 1 | . . . . . 1 . . . Fabricator Hacks 2 | . . . . . . . 2 . Network Status 1 | . . . . . . . 1 . Load Schematic 1 | . . . . . . . 1 . Repair Station Hacks 16 | . 3 8 . . . 3 2 . Scan Component 10 | . 2 4 . . . 2 2 . Repair 6 | . 1 4 . . . 1 . . Recycling Unit Hacks 3 | . . . . 2 . 1 . . Retrieve Components 3 | . . . . 2 . 1 . . Scanalyzer 10 | . . . . 4 . 2 4 . Insert Component 5 | . . . . 2 . 1 2 . Analyze 5 | . . . . 2 . 1 2 . Garrison Access Hacks 3 | . . . . 1 . . 2 . Unlock Access 1 | . . . . 1 . . . . Seal Access 2 | . . . . . . . 2 . Unauthorized Hacks 27 | . 4 5 . 9 . 6 3 . Terminals 11 | . 3 3 . 1 . 1 3 . Assimilate 4 | . 1 1 . . . . 2 . Botnet 2 | . 1 1 . . . . . . Operators 5 | . 1 1 . 1 . 1 1 . Fabricators . | . . . . . . . . . Repair Stations 2 | . 1 . . . . 1 . . Mechanics 2 | . 1 . . . . 1 . . Recycling Units 12 | . . 2 . 6 . 4 . . Monitor 1 | . . . . 1 . . . . Reject 5 | . . 1 . 2 . 2 . . Recyclers 3 | . . 1 . 1 . 1 . . Mask 3 | . . . . 2 . 1 . . Scanalyzers . | . . . . . . . . . Garrison Access 2 | . . . . 2 . . . . Broadcast 1 | . . . . 1 . . . . Decoy 1 | . . . . 1 . . . . Data Cores Recovered . | . . . . . . . . . Used . | . . . . . . . . . Hacking Detections 47 | . 7 7 . 11 2 8 12 . Full Trace Events 4 | . . . . . . 1 3 . Feedback Events . | . . . . . . . . . Feedback Blocked . | . . . . . . . . . Robot Schematics Acquired . | . . . . . . . . . Robots Built . | . . . . . . . . . Authchips . | . . . . . . . . . Time . | . . . . . . . . . Total Robot Build Rating . | . . . . . . . . . Part Schematics Acquired 5 | . . . . 2 . 1 2 . Parts Built . | . . . . . . . . . Authchips . | . . . . . . . . . Time . | . . . . . . . . . Total Part Build Rating . | . . . . . . . . . Parts Repaired 6 | . 1 4 . . . 1 . . Time 168 | . 26 116 . . . 26 . . Parts Recycled . | . . . . . . . . . Recycled Matter . | . . . . . . . . . Retrieved Matter . | . . . . . . . . . Retrieved Components 30 | . . . . 20 . 10 . . Parts Scanalyzed 5 | . . . . 2 . 1 2 . Part Schematics Acquired 5 | . . . . 2 . 1 2 . Parts Damaged . | . . . . . . . . . Bothacking | -11 -10 -9 -9 -8 -8 -8 -7 -7 ------------ Run | Yrd Mat Mat Min Mat Gar Mat Fac Sto Used RIF Installer 2 | . . . . . 2 . . . Command Fork 1 | . . . . . 1 . . . Robots Hacked 8 | . . . . . . 8 . . Non-combat 8 | . . . . . . 8 . . Combat . | . . . . . . . . . Robot Hacks Applied 11 | . . . . . . 11 . . generate_echo 1 | . . . . . . 1 . . drop_inventory 2 | . . . . . . 2 . . find_recycling 1 | . . . . . . 1 . . ignore_parts 1 | . . . . . . 1 . . find_station 1 | . . . . . . 1 . . purge_threat 3 | . . . . . . 3 . . reprogram_traps 1 | . . . . . . 1 . . streamctrl_low 1 | . . . . . . 1 . . Relay Couplers Released 12 | . . . . . 12 . . . Machine Destruction 12 | . . . . . 12 . . . Attached 2 | . . . . . 1 1 . . Fabnet Peak Effective % . | . . . . . . . . . Robots Rewired . | . . . . . . . . . Allies Hacked . | . . . . . . . . . Hacks Repelled . | . . . . . . . . . Allies | -11 -10 -9 -9 -8 -8 -8 -7 -7 -------- Run | Yrd Mat Mat Min Mat Gar Mat Fac Sto Total Allies 7 | . 1 1 3 . . 1 1 . Largest Group 3 | . 1 1 3 2 . . 1 . Highest-Rated Group 81 | . 10 10 81 50 . . 10 . Highest-Rated Ally 31 | . 10 10 31 31 . . 10 . Total Orders 13 | . . 12 . . . 1 . . STAY 7 | . . 7 . . . . . . FOLLOW 5 | . . 5 . . . . . . AID 1 | . . . . . . 1 . . Ally Attacks 7 | . . . . 7 . . . . Total Damage 106 | . . . . 106 . . . . Kills . | . . . . . . . . . Allies Corrupted . | . . . . . . . . . Allies Melted . | . . . . . . . . . Intel | -11 -10 -9 -9 -8 -8 -8 -7 -7 ------- Run | Yrd Mat Mat Min Mat Gar Mat Fac Sto Robot Analysis Total . | . . . . . . . . . Derelict Logs Recovered 2 | . . . 2 . . . . . Drone Launches . | . . . . . . . . . Drone Recoveries . | . . . . . . . . . Exploration | -11 -10 -9 -9 -8 -8 -8 -7 -7 ------------- Run | Yrd Mat Mat Min Mat Gar Mat Fac Sto Turns Passed 19610 | 81 2874 4206 1497 3003 2095 2629 3225 . Spaces Moved 6619 | 24 823 1263 599 834 698 858 1520 . Core . | . . . . . . . . . Treads 5320 | . 808 1263 599 834 698 858 260 . Legs 58 | 24 15 . . . . . 19 . Wheels . | . . . . . . . . . Hover 569 | . . . . . . . 569 . Flight 672 | . . . . . . . 672 . Fastest Speed 27 | 120 120 240 240 236 240 240 27 . Average Speed 226 | 120 257 240 240 237 240 246 170 . Slowest Speed 700 | 120 320 240 240 240 320 320 700 . Overloaded Moves . | . . . . . . . . . Propulsion Burnouts . | . . . . . . . . . Robots Hopped 2 | . . . . . . . 2 . Cave-ins Triggered 1 | . . 1 . . . . . . Exploration Rate (%) 57 | 3 97 97 97 66 63 59 37 2 Regions Visited 8 Branch Regions 2 Pre-discovered Areas 1 | . . . 1 . . . . . Known Exits Taken 3 | . . . . 1 . 1 1 . Unknown Exits Taken 4 | 1 1 1 1 . . . . . Scrap Searched 1 | . . . 1 . . . . . Spaces Dug 41 | . 7 3 . 9 . . 22 . Terrain Destroyed 190 | . 13 48 . 16 27 50 36 . Melee 39 | . 7 3 . 9 . . 20 . Projectile 2 | . . . . . . . 2 . AOE 149 | . 6 45 . 7 27 50 14 . Terrain Rammed . | . . . . . . . . . Walls Destroyed . | . . . . . . . . . Machines Disabled . | . . . . . . . . . Actions | -11 -10 -9 -9 -8 -8 -8 -7 -7 --------- Run | Yrd Mat Mat Min Mat Gar Mat Fac Sto Total 10052 | 62 1462 2185 628 1591 936 1226 1962 . Wait 2092 | 26 548 644 6 467 36 162 203 . Move 6607 | 23 822 1262 598 833 697 857 1515 . Hop 2 | . . . . . . . 2 . Pick Up 133 | 2 13 39 1 29 9 15 25 . Fast Attach 65 | 1 1 8 3 11 5 16 20 . Attach 44 | . 3 7 . 9 11 3 11 . Detach 8 | . 2 2 . . 2 . 2 . Swap 170 | 1 10 36 2 58 19 30 14 . Drop 148 | 2 1 44 1 41 3 23 33 . Fire 577 | 7 47 122 9 133 83 90 86 . Melee 138 | . 13 14 . 9 42 29 31 . Ram . | . . . . . . . . . Kick . | . . . . . . . . . Crush 19 | . 2 7 8 1 . 1 . . Escape Stasis 24 | . . . . . 4 . 20 . Rewire . | . . . . . . . . . Trap 25 | . . . . . 25 . . . Miscellaneous . | . . . . . . . . . Route ------- -11/Scrapyard -10/Materials (discovered 5 exits: *Mat x3 / [*Min x2]) -9/Materials (discovered 5 exits: *Mat x3 / [*Min x2]) -9/Mines (discovered 2 exits: *Mat x2) -8/Materials (discovered 2 exits: *Fac / Gar) -8/Garrison (discovered 2 exits: *Mat x2) -8/Materials -7/Factory (discovered 5 exits: *Fac / *Sto x2 / Low x2) -7/Storage History --------- Turn | Location | Event 9 | -11/Scrapyard | Discovered new exit (range 2) 82 | -11/Scrapyard | Entered Materials 350 | -10/Materials | Build established: Mutant 394 | -10/Materials | Discovered new exit (range 10) 914 | -10/Materials | Discovered new exit (range 15) 1263 | -10/Materials | Discovered new exit (range 7) 1438 | -10/Materials | Discovered new exit (range 16) 2174 | -10/Materials | Discovered new exit (range 6) 2700 | -10/Materials | Repaired Lgt. Treads 2956 | -10/Materials | Entered another Materials area 2956 | -9/Materials | Accompanied by 1 ally 2956 | -9/Materials | Evolved 2 slots: Propulsion x2 3999 | -9/Materials | Discovered new exit (range 12) 4129 | -9/Materials | Repaired EM Pulse Gun 4297 | -9/Materials | Discovered new exit (range 14) 5064 | -9/Materials | Discovered new exit (range 9) 5346 | -9/Materials | Crushed by falling debris 5887 | -9/Materials | Core integrity fell below 50% 6249 | -9/Materials | Discovered new exit (range 7) 6316 | -9/Materials | Discovered new exit (range 13) 6713 | -9/Materials | Repaired Lgt. Treads 6741 | -9/Materials | Repaired Lgt. Treads 6780 | -9/Materials | Repaired Hpw. Shotgun 6956 | -9/Materials | First assault squad dispatched 7162 | -9/Materials | Entered Mines 7224 | -9/Mines | Discovered new exit (range 14) 7226 | -9/Mines | Learned location of Recycling (-7) 7654 | -9/Mines | Discovered new exit (range 9) 7912 | -9/Mines | Learned Materials security intel 8166 | -9/Mines | Received a Mining Laser from a helpful Derelict 8659 | -9/Mines | Entered Materials 8659 | -8/Materials | Accompanied by 2 allies 8659 | -8/Materials | Evolved 2 slots: Utility x2 8664 | -8/Materials | Led the pair of lost Derelicts to an unsafe place 8747 | -8/Materials | Garrison activated, responded to threat 9362 | -8/Materials | Build established: Scavenger-Mutant 9418 | -8/Materials | Garrison activated, responded to threat 9580 | -8/Materials | Identified exit to Garrison 9809 | -8/Materials | Lost 3 parts (2n1u) 10887 | -8/Materials | Discovered new exit (range 14) 11459 | -8/Materials | First assault squad dispatched 11662 | -8/Materials | Entered Garrison 11788 | -8/Garrison | Triggered checkpoint 11878 | -8/Garrison | Triggered checkpoint 12000 | -8/Garrison | Garrison Relay disabled 12232 | -8/Garrison | Triggered checkpoint 12318 | -8/Garrison | Triggered checkpoint 12402 | -8/Garrison | Garrison Relay disabled 12483 | -8/Garrison | Discovered new exit (range 8) 12739 | -8/Garrison | Discovered new exit (range 3) 12872 | -8/Garrison | Triggered checkpoint 12931 | -8/Garrison | Core integrity fell below 50% 12969 | -8/Garrison | Lost 8 parts (2n2u4w) 13104 | -8/Garrison | Installed Relay Interface Framework 13148 | -8/Garrison | Garrison Relay disabled 13460 | -8/Garrison | Expanded RIF knowledge: Command Fork 13757 | -8/Garrison | Entered Materials 13823 | -8/Materials | Build established: Bothacker-Mutant 14666 | -8/Materials | Discovered new exit (range 8) 14704 | -8/Materials | Repaired Lgt. Treads 14883 | -8/Materials | Core integrity fell below 20% 15024 | -8/Materials | System corruption reached 10% 15320 | -8/Materials | Build established: Scavenger-Mutant 16384 | -8/Materials | Identified exit to Factory 16386 | -8/Materials | Entered Factory 16386 | -7/Factory | Evolved 2 slots: Propulsion x1, Utility x1 16616 | -7/Factory | Discovered new exit (range 4) 16623 | -7/Factory | Identified exit to Factory 17061 | -7/Factory | Build established: Mutant 17243 | -7/Factory | Identified exit to Storage 17243 | -7/Factory | Identified exit to Lower Caves 17651 | -7/Factory | Build established: Scavenger-Mutant 18011 | -7/Factory | Lost 3 parts (3n) 19611 | -7/Factory | Entered Storage 19611 | -7/Storage | Self-destructed Last Messages --------------- 19555_ U-05 Engineer lays Concrete. 19558_ Connecting with Terminal... 19558_ Terminal disabled. 19561_ K-01 Serf collects debris. 19570_ Dropped Imp. Flight Unit. 19571_ Acquired Cesium-ion Thruster. 19582_ System corrupted: Substantial component data lost. 19582_ Sneak attack on A-02 Transporter. 19582_ A-02 Transporter suffers critical hit (Smash). 19582_ A-02 Transporter destroyed. 19585_ Dropped Gauss Rifle. 19586_ ALERT: Rogue bot located, Programmers report to Factory Zone 5P. 19586_ Acquired Prototype Ballistic Cannon. 19586_ Identified Mni. Assault Cannon. 19586_ U-05 Engineer builds a Wall. 19590_ R-06 Scavenger collects Imp. Flight Unit. 19599_ K-01 Serf collects debris. 19607_ System corrupted: Heat flow error (+104). LOCATION=STORAGE GOAL=ESCAPE Map ----- +----------------------------------------------------+ | | | | | | | | | | | | | | | | | | | | | | | | | | | | | | | | | | | | | | | ???????????????????????????? | | ???????????????????????????? | | ???????????????????????????? | | ???????????????????????????? | | ?#####?????????????????????? | | ?# #?????????????????????? | | ?# @ #?????????????????????? | | ?# #?????????????????????? | | ?# #?????????????????????? | | ?# #?????????????????????? | | ?# +?????????????????????? | | ?# #?????????????????????? | | ?# #?????????????????????? | | ?# #?????????????????????? | | ?# #?????????????????????? | | ?# #?????????????????????? | | ?# #?????????????????????? | | ?# #?????????????????????? | | ?# #?????????????????????? | | ?? ??????????????????????? | | ?? ??????????????????????? | | ?? ??????????????????????? | | ???????????????????????????? | | ???????????????????????????? | | ???????????????????????????? | | ???????????????????????????? | | ???????????????????????????? | | ???????????????????????????? | | ???????????????????????????? | | ???????????????????????????? | | ???????????????????????????? | +----------------------------------------------------+ Best States ------------- Heat Dissipation 61 Energy Generation 23 Energy Capacity 280 Matter Stores 500 Matter Capacity 500 Sight Range 16 Robot Scan Range 15 Terrain Scan Range 16 Terrain Scan Density 10 Armor Coverage 450 Resistance: KI 20 Propulsion Shielding 66 Evasion (%) 64 Recoil Reduction 4 Particle Charging 15 Offensive Hacking 10 Relay Coupler Types 1 Relay Coupler Value 21 Item Schematics ----------------- Med. Storage Unit | -8/Materials | Scanalyzed System Shield | -8/Materials | Scanalyzed Imp. VTOL Module | -8/Materials | Scanalyzed Xenon Bombardment Thruster | -7/Factory | Scanalyzed Greatsword | -7/Factory | Scanalyzed Robot Schematics ------------------ None Fabricated ------------ Nothing Alien Tech Used ----------------- None Achievements -------------- Short-term Sacrifices Challenges ------------ None Game ------ Seed MachineMetafieldFrame Manual? 0 Play Time 03:43:38 Cumulative 58.9 hours Start 2024.04.20 @ 20:07:55 End 2024.04.23 @ 18:10:07 Sessions 3 Manual Loads 0 Difficulty Rogue Special Mode None Game No. 35 Rogue 35 Adventurer 0 Explorer 0 Win Type - Total 0 Types 0/0/0/0/0/0/0/0/0 Lore% 28 Gallery% 37 Achievement% 32 Wizard Run 0 Options --------- Layout 0 ASCII 0 Keyboard 0 Movement Mouse Keybinds 1 Fullscreen 1 Font 18/SmallcapsGlow Map View 76x50 Zoom Use 0% Tactical HUD 1 Map Filters NONE Filters NONE Steam 1 RUN: ed05c2b0-48a7-4329-bb5a-bbb721b10e08